[Event "74th Superior Womens Argentine-ch 2023"]
[Site "Buenos Aires"]
[Date "2023.11.26"]
[Round "6.2"]
[White "Sarquis, Maria Belen"]
[Black "Campos, Maria Jose"]
[Result "1/2-1/2"]
[ECO "C54"]
[WhiteElo "2194"]
[BlackElo "2208"]
[Annotator "RC"]
[PlyCount "104"]
[EventDate "2023.11.20"]
[EventType "swiss"]
[EventCountry "ARG"]
[SourceTitle "playchess.com"]
[Source "ChessBase"]
[SourceQuality "1"]
[TimeControl "5400+30"]

1. e4 {[%emt 0:00:03]} e5 {[%emt 0:01:29]} 2. Nf3 {[%emt 0:00:28]} Nc6 {[%emt 0:00:48]} 3. Bc4 {[%emt 0:00:16]} Nf6 {[%emt 0:00:44]} 4. d3 {[%emt 0:00:26]} Bc5 {[%emt 0:00:22]} 5. O-O {[%emt 0:00:41]} d6 {[%emt 0:00:38]} 6. c3 {[%emt 0:00:59]} a5 {[%emt 0:01:04]} 7. Nbd2 {[%emt 0:02:15]} O-O {[%emt 0:01:40]} 8. h3 {[%emt 0:01:08]} h6 {[%emt 0:04:29]} 9. Re1 {[%emt 0:01:26]} Be6 {[%emt 0:01:14]} 10. Bb5 {[%emt 0:01:08]} Qb8 {[%emt 0:02:22]} 11. Nf1 {[%emt 0:00:19]} Qa7 {[%emt 0:01:10]} 12. Be3 {[%emt 0:01:24]} Bxe3 {[%emt 0:00:09]} 13. Nxe3 {[%emt 0:00:17]} Ne7 {[%emt 0:01:33]} 14. a4 {[%emt 0:01:28]} Ng6 {[%emt 0:03:09]} 15. Bc4 {[%emt 0:03:05]} Bxc4 {[%emt 0:00:07]} 16. Nxc4 {[%emt 0:00:32]} Qa6 {[%emt 0:00:06]} 17. Qb3 {[%emt 0:08:39]} Rfe8 {[%emt 0:11:13]} 18. g3 {[%emt 0:04:30]} b6 {[%emt 0:02:28]} 19. Kh2 {[%emt 0:04:39]} Rad8 {[%emt 0:04:25]} 20. Rad1 {[%emt 0:09:18]} Nf8 {[%emt 0:07:35]} 21. Qa2 {[%emt 0:13:44]} Ne6 {[%emt 0:01:57]} 22. d4 {[%emt 0:09:31]} exd4 {[%emt 0:15:49]} 23. cxd4 {[%emt 0:01:40]} Qa8 {[%emt 0:02:42]} 24. Qb1 {[%emt 0:04:28]} d5 {[%emt 0:06:04]} 25. exd5 {[%emt 0:00:33]} Qxd5 {[%emt 0:01:52]} 26. Nce5 {[%emt 0:30:33]} Qb3 {[%emt 0:08:27]} 27. Qa1 {[%emt 0:00:00]} c5 {[%emt 0:03:54]} 28. Rd3 {[%emt 0:00:00]} Qd5 {[%emt 0:01:45]} 29. dxc5 {[%emt 0:00:00]} Qxc5 {[%emt 0:00:01]} 30. Kg2 {[%emt 0:00:00]} Rxd3 {[%emt 0:04:27]} 31. Nxd3 {[%emt 0:00:00]} Qd5 {[%emt 0:00:50]} 32. Re3 {[%emt 0:00:00]} Rd8 {[%emt 0:01:27]} 33. b4 {[%emt 0:00:00]} axb4 {[%emt 0:02:17]} 34. Nxb4 {[%emt 0:00:00]} Qc4 {[%emt 0:00:25]} 35. Qc3 {[%emt 0:00:00]} Rc8 {[%emt 0:01:33]} 36. Qb2 {[%emt 0:00:00]} Rd8 {[%emt 0:04:14]} 37. Rc3 {[%emt 0:00:00]} Qe4 {[%emt 0:00:17]} 38. Nc6 {[%emt 0:00:00]} Rd1 {[%emt 0:02:29]} 39. Qc2 {[%emt 0:01:42]} Qxc2 {[%emt 0:00:38]} 40. Rxc2 {[%emt 0:00:04]} Ra1 {[%emt 0:00:23]} 41. Ne7+ {[%emt 0:01:51]} Kf8 {[%emt 0:00:40]} 42. Nc8 {[%emt 0:00:28]} Nd7 {[%emt 0:01:18]} 43. Rb2 {[%emt 0:00:58]} Rxa4 {[%emt 0:00:53]} 44. Nxb6 {[%emt 0:00:19]} Nxb6 {[%emt 0:00:22]} 45. Rxb6 {[%emt 0:00:04]} Re4 {[%emt 0:00:20]} 46. Rb2 {[%emt 0:01:19]} g5 {[%emt 0:00:15]} 47. Nd2 {[%emt 0:00:39]} Rd4 {[%emt 0:00:26]} 48. Nf3 {[%emt 0:00:18]} Rd5 {[%emt 0:00:15]} 49. h4 {[%emt 0:01:15]} Kg7 {[%emt 0:00:38]} 50. hxg5 {[%emt 0:00:11]} hxg5 {[%emt 0:00:01]} 51. Rd2 {[%emt 0:00:11]} Rc5 {[%emt 0:00:17]} 52. Nd4 {[%emt 0:00:44]} Nxd4 {[%emt 0:02:04]} 1/2-1/2

[Event "74th Superior Womens Argentine-ch 2023"]
[Site "Buenos Aires"]
[Date "2023.11.26"]
[Round "6.3"]
[White "Donda, Jazmin"]
[Black "Zuriel, Marisa"]
[Result "0-1"]
[ECO "A58"]
[WhiteElo "1825"]
[BlackElo "2165"]
[Annotator "RC"]
[PlyCount "80"]
[EventDate "2023.11.20"]
[EventType "swiss"]
[EventCountry "ARG"]
[SourceTitle "playchess.com"]
[Source "ChessBase"]
[SourceQuality "1"]
[TimeControl "5400+30"]

1. d4 {[%emt 0:00:02]} Nf6 {[%emt 0:00:27]} 2. c4 {[%emt 0:00:11]} c5 {[%emt 0:00:18]} 3. d5 {[%emt 0:00:09]} b5 {[%emt 0:00:06]} 4. cxb5 {[%emt 0:00:08]} a6 {[%emt 0:00:05]} 5. bxa6 {[%emt 0:00:09]} g6 {[%emt 0:00:07]} 6. Nc3 {[%emt 0:00:09]} Bg7 {[%emt 0:00:06]} 7. a7 {[%emt 0:07:40]} Rxa7 {[%emt 0:00:20]} 8. e4 {[%emt 0:00:06]} O-O {[%emt 0:01:08]} 9. Nf3 {[%emt 0:00:13]} d6 {[%emt 0:05:15]} 10. Be2 {[%emt 0:00:45]} Ba6 {[%emt 0:00:21]} 11. O-O {[%emt 0:00:27]} Nbd7 {[%emt 0:00:37]} 12. Re1 {[%emt 0:01:47]} Qa5 {[%emt 0:04:44]} 13. a4 {[%emt 0:13:12]} Bxe2 {[%emt 0:03:43]} 14. Qxe2 {[%emt 0:01:48]} Rb8 {[%emt 0:00:50]} 15. Ra3 {[%emt 0:01:59]} Ne8 {[%emt 0:03:40]} 16. Nb5 {[%emt 0:13:11]} Raa8 {[%emt 0:02:08]} 17. b3 {[%emt 0:13:58]} Nc7 {[%emt 0:14:10]} 18. Bd2 {[%emt 0:03:54]} Qb6 {[%emt 0:00:22]} 19. Nxc7 {[%emt 0:05:00]} Qxc7 {[%emt 0:00:06]} 20. Bg5 {[%emt 0:01:00]} Rb4 {[%emt 0:11:20]} 21. Rc1 {[%emt 0:08:44]} Rab8 {[%emt 0:01:40]} 22. Qc2 {[%emt 0:01:39]} Qb6 {[%emt 0:14:47]} 23. Nd2 {[%emt 0:02:16]} Ne5 {[%emt 0:00:55]} 24. Bf4 {[%emt 0:04:57]} Qa6 {[%emt 0:20:06]} 25. Bxe5 {[%emt 0:07:19]} Bxe5 {[%emt 0:00:09]} 26. Nc4 {[%emt 0:00:15]} Bd4 {[%emt 0:00:04]} 27. g3 {[%emt 0:01:13]} Kg7 {[%emt 0:01:58]} 28. Rb1 {[%emt 0:02:38]} h5 {[%emt 0:00:28]} 29. h4 {[%emt 0:02:11]} Rf8 {[%emt 0:02:57]} 30. Re1 {[%emt 0:02:37]} e5 {[%emt 0:02:12]} 31. Ne3 {[%emt 0:02:24]} Rfb8 {[%emt 0:04:23]} 32. Nc4 {[%emt 0:00:53]} Rf8 {[%emt 0:01:12]} 33. Ne3 {[%emt 0:00:07]} Qa5 {[%emt 0:00:14]} 34. Re2 {[%emt 0:00:47]} Bxe3 {[%emt 0:03:41]} 35. Rxe3 {[%emt 0:01:39]} Rd4 {[%emt 0:00:06]} 36. Kg2 {[%emt 0:02:07]} f5 {[%emt 0:00:15]} 37. exf5 {[%emt 0:00:29]} Qa8 {[%emt 0:01:23]} 38. Kh2 {[%emt 0:00:50]} Qxd5 {[%emt 0:00:09]} 39. f6+ {[%emt 0:00:30]} Rxf6 {[%emt 0:00:06]} 40. Re2 {[%emt 0:00:03]} Rd1 {[%emt 0:00:29]} 0-1

[Event "74th Superior Womens Argentine-ch 2023"]
[Site "Buenos Aires"]
[Date "2023.11.26"]
[Round "6.4"]
[White "Borda Rodas, Anapaola S."]
[Black "Encina, Guadalupe"]
[Result "1-0"]
[ECO "B52"]
[WhiteElo "2261"]
[BlackElo "1877"]
[Annotator "RC"]
[PlyCount "63"]
[EventDate "2023.11.20"]
[EventType "swiss"]
[EventCountry "ARG"]
[SourceTitle "playchess.com"]
[Source "ChessBase"]
[SourceQuality "1"]
[TimeControl "5400+30"]

1. e4 {[%emt 0:00:03]} c5 {[%emt 0:00:04]} 2. Nf3 {[%emt 0:00:20]} d6 {[%emt 0:00:05]} 3. Bb5+ {[%emt 0:00:05]} Bd7 {[%emt 0:00:04]} 4. c4 {[%emt 0:00:06]} Bxb5 {[%emt 0:11:39]} 5. cxb5 {[%emt 0:00:42]} e5 {[%emt 0:00:06]} 6. Nc3 {[%emt 0:03:32]} Nf6 {[%emt 0:00:36]} 7. d3 {[%emt 0:00:55]} Be7 {[%emt 0:00:05]} 8. O-O {[%emt 0:00:54]} O-O {[%emt 0:01:26]} 9. Re1 {[%emt 0:06:47]} a6 {[%emt 0:10:13]} 10. bxa6 {[%emt 0:04:24]} Rxa6 {[%emt 0:00:28]} 11. Nd2 {[%emt 0:00:25]} Nc6 {[%emt 0:00:29]} 12. Nc4 {[%emt 0:00:58]} Na7 {[%emt 0:12:38]} 13. Qb3 {[%emt 0:09:37]} b5 {[%emt 0:06:31]} 14. Nxb5 {[%emt 0:04:02]} Qb8 {[%emt 0:00:17]} 15. Nba3 {[%emt 0:00:09]} Qxb3 {[%emt 0:02:22]} 16. axb3 {[%emt 0:00:04]} Rb8 {[%emt 0:00:32]} 17. Bg5 {[%emt 0:03:58]} Rxb3 {[%emt 0:02:31]} 18. Bxf6 {[%emt 0:06:37]} gxf6 {[%emt 0:02:27]} 19. Nc2 {[%emt 0:01:34]} Rxa1 {[%emt 0:06:20]} 20. Rxa1 {[%emt 0:00:12]} Nb5 {[%emt 0:00:31]} 21. Ra8+ {[%emt 0:06:42]} Kg7 {[%emt 0:01:59]} 22. N4e3 {[%emt 0:18:19]} f5 {[%emt 0:11:14]} 23. Nxf5+ {[%emt 0:03:48]} Kf6 {[%emt 0:00:07]} 24. Nce3 {[%emt 0:01:11]} Rxb2 {[%emt 0:01:40]} 25. h4 {[%emt 0:01:35]} Nc7 {[%emt 0:04:45]} 26. Rc8 {[%emt 0:01:31]} Rb7 {[%emt 0:04:50]} 27. Rxc7 {[%emt 0:00:36]} Rxc7 {[%emt 0:00:04]} 28. Nd5+ {[%emt 0:00:05]} Kg6 {[%emt 0:00:56]} 29. Nfxe7+ {[%emt 0:00:18]} Rxe7 {[%emt 0:00:05]} 30. Nxe7+ {[%emt 0:00:08]} Kf6 {[%emt 0:00:05]} 31. Nd5+ {[%emt 0:00:27]} Ke6 {[%emt 0:00:05]} 32. g4 {[%emt 0:00:35]} 1-0

[Event "74th Superior Womens Argentine-ch 2023"]
[Site "Buenos Aires"]
[Date "2023.11.26"]
[Round "6.5"]
[White "Bosco, Giuliana"]
[Black "Nejanky, Maisa"]
[Result "0-1"]
[ECO "B23"]
[WhiteElo "1878"]
[BlackElo "1951"]
[Annotator "RC"]
[PlyCount "70"]
[EventDate "2023.11.20"]
[EventType "swiss"]
[EventCountry "ARG"]
[SourceTitle "playchess.com"]
[Source "ChessBase"]
[SourceQuality "1"]
[TimeControl "5400+30"]

1. e4 {[%emt 0:00:03]} c5 {[%emt 0:20:02]} 2. Nc3 {[%emt 0:00:12]} Nc6 {[%emt 0:00:05]} 3. Bb5 {[%emt 0:00:07]} Nd4 {[%emt 0:00:12]} 4. Bc4 {[%emt 0:00:08]} e6 {[%emt 0:04:56]} 5. Nge2 {[%emt 0:01:11]} a6 {[%emt 0:01:17]} 6. a4 {[%emt 0:01:25]} g6 {[%emt 0:02:36]} 7. O-O {[%emt 0:05:36]} Bg7 {[%emt 0:00:06]} 8. f4 {[%emt 0:03:50]} Ne7 {[%emt 0:00:56]} 9. d3 {[%emt 0:06:24]} O-O {[%emt 0:02:59]} 10. Ng3 {[%emt 0:03:28]} d5 {[%emt 0:06:23]} 11. Ba2 {[%emt 0:03:17]} b5 {[%emt 0:03:37]} 12. Be3 {[%emt 0:08:33]} Bb7 {[%emt 0:18:14]} 13. Qd2 {[%emt 0:06:01]} Qd7 {[%emt 0:08:00]} 14. a5 {[%emt 0:10:39]} Rac8 {[%emt 0:05:26]} 15. Qf2 {[%emt 0:06:22]} Rfd8 {[%emt 0:08:54]} 16. Nd1 {[%emt 0:07:56]} dxe4 {[%emt 0:04:40]} 17. dxe4 {[%emt 0:00:36]} c4 {[%emt 0:02:54]} 18. c3 {[%emt 0:05:56]} Nb3 {[%emt 0:00:25]} 19. Bxb3 {[%emt 0:00:07]} cxb3 {[%emt 0:00:05]} 20. Bb6 {[%emt 0:00:06]} Re8 {[%emt 0:01:23]} 21. Ne3 {[%emt 0:02:04]} Bc6 {[%emt 0:04:45]} 22. Rad1 {[%emt 0:07:07]} Qb7 {[%emt 0:00:10]} 23. f5 {[%emt 0:00:11]} exf5 {[%emt 0:00:17]} 24. exf5 {[%emt 0:00:05]} Nd5 {[%emt 0:01:21]} 25. Nxd5 {[%emt 0:11:24]} Bxd5 {[%emt 0:00:03]} 26. Qd2 {[%emt 0:00:17]} Bc4 {[%emt 0:01:43]} 27. Rfe1 {[%emt 0:01:09]} Qc6 {[%emt 0:01:04]} 28. Rxe8+ {[%emt 0:04:53]} Rxe8 {[%emt 0:00:20]} 29. Re1 {[%emt 0:00:29]} h5 {[%emt 0:01:02]} 30. Rxe8+ {[%emt 0:02:34]} Qxe8 {[%emt 0:00:01]} 31. Bd8 {[%emt 0:00:34]} Bh6 {[%emt 0:00:36]} 32. Qd1 {[%emt 0:01:46]} Qe3+ {[%emt 0:00:23]} 33. Kh1 {[%emt 0:00:07]} Qc1 {[%emt 0:00:13]} 34. Qxc1 {[%emt 0:01:36]} Bxc1 {[%emt 0:00:01]} 35. Ne4 {[%emt 0:00:05]} Bxb2 {[%emt 0:00:31]} 0-1

[Event "74th Superior Womens Argentine-ch 2023"]
[Site "Buenos Aires"]
[Date "2023.11.27"]
[Round "7.1"]
[White "Borda Rodas, Anapaola S."]
[Black "Brizzi, Milagros Tatiana"]
[Result "1-0"]
[ECO "B19"]
[WhiteElo "2261"]
[BlackElo "2076"]
[Annotator "RC"]
[PlyCount "61"]
[EventDate "2023.11.20"]
[EventType "swiss"]
[EventCountry "ARG"]
[SourceTitle "playchess.com"]
[Source "ChessBase"]
[SourceQuality "1"]
[TimeControl "5400+30"]

1. e4 {[%emt 0:00:04]} c6 {[%emt 0:00:11]} 2. d4 {[%emt 0:00:06]} d5 {[%emt 0:00:27]} 3. Nc3 {[%emt 0:00:09]} dxe4 {[%emt 0:00:25]} 4. Nxe4 {[%emt 0:00:07]} Bf5 {[%emt 0:00:28]} 5. Ng3 {[%emt 0:00:25]} Bg6 {[%emt 0:00:16]} 6. h4 {[%emt 0:00:33]} h6 {[%emt 0:00:19]} 7. Nf3 {[%emt 0:00:22]} Nd7 {[%emt 0:00:31]} 8. h5 {[%emt 0:00:47]} Bh7 {[%emt 0:00:08]} 9. Bd3 {[%emt 0:00:17]} Bxd3 {[%emt 0:00:20]} 10. Qxd3 {[%emt 0:00:07]} e6 {[%emt 0:00:21]} 11. Bd2 {[%emt 0:00:58]} Ngf6 {[%emt 0:00:27]} 12. O-O-O {[%emt 0:03:16]} Be7 {[%emt 0:00:13]} 13. Ne4 {[%emt 0:03:46]} Nxe4 {[%emt 0:02:28]} 14. Qxe4 {[%emt 0:00:08]} Nf6 {[%emt 0:01:05]} 15. Qd3 {[%emt 0:01:34]} O-O {[%emt 0:04:57]} 16. g4 {[%emt 0:00:24]} Qd5 {[%emt 0:06:49]} 17. g5 {[%emt 0:00:21]} Qxa2 {[%emt 0:05:59]} 18. c3 {[%emt 0:00:09]} Ng4 {[%emt 0:07:00]} 19. Rdg1 {[%emt 0:02:05]} Nxf2 {[%emt 0:10:10]} 20. Qe3 {[%emt 0:01:09]} Nxh1 {[%emt 0:13:46]} 21. gxh6 {[%emt 0:02:05]} Ba3 {[%emt 0:03:37]} 22. bxa3 {[%emt 0:03:33]} Qxa3+ {[%emt 0:05:44]} 23. Kd1 {[%emt 0:06:48]} Qb3+ {[%emt 0:05:12]} 24. Ke1 {[%emt 0:08:27]} Qb1+ {[%emt 0:01:56]} 25. Bc1 {[%emt 0:00:30]} f6 {[%emt 0:10:40]} 26. Rxg7+ {[%emt 0:03:26]} Kh8 {[%emt 0:00:07]} 27. Nh4 {[%emt 0:00:06]} Ng3 {[%emt 0:02:26]} 28. Ng6+ {[%emt 0:00:31]} Qxg6 {[%emt 0:00:06]} 29. hxg6 {[%emt 0:00:03]} Nf5 {[%emt 0:00:14]} 30. Rh7+ {[%emt 0:00:15]} Kg8 {[%emt 0:00:06]} 31. Qxe6+ {[%emt 0:00:12]} 1-0

[Event "74th Superior Womens Argentine-ch 2023"]
[Site "Buenos Aires"]
[Date "2023.11.27"]
[Round "7.2"]
[White "Zuriel, Marisa"]
[Black "Sarquis, Maria Belen"]
[Result "1/2-1/2"]
[ECO "B33"]
[WhiteElo "2165"]
[BlackElo "2194"]
[Annotator "RC"]
[PlyCount "180"]
[EventDate "2023.11.20"]
[EventType "swiss"]
[EventCountry "ARG"]
[SourceTitle "playchess.com"]
[Source "ChessBase"]
[SourceQuality "1"]
[TimeControl "5400+30"]

1. e4 {[%emt 0:00:21]} c5 {[%emt 0:00:09]} 2. Nf3 {[%emt 0:00:17]} Nc6 {[%emt 0:00:05]} 3. d4 {[%emt 0:00:59]} cxd4 {[%emt 0:00:08]} 4. Nxd4 {[%emt 0:00:05]} Nf6 {[%emt 0:00:13]} 5. Nc3 {[%emt 0:00:52]} e5 {[%emt 0:00:12]} 6. Ndb5 {[%emt 0:00:20]} d6 {[%emt 0:00:31]} 7. Bg5 {[%emt 0:01:31]} a6 {[%emt 0:00:53]} 8. Na3 {[%emt 0:00:05]} b5 {[%emt 0:00:11]} 9. Nd5 {[%emt 0:00:06]} Be7 {[%emt 0:00:13]} 10. Bxf6 {[%emt 0:00:06]} Bxf6 {[%emt 0:00:42]} 11. c3 {[%emt 0:00:04]} Bg5 {[%emt 0:00:43]} 12. Nc2 {[%emt 0:00:07]} Rb8 {[%emt 0:00:31]} 13. Be2 {[%emt 0:13:24]} O-O {[%emt 0:04:13]} 14. Bg4 {[%emt 0:02:35]} Be6 {[%emt 0:03:52]} 15. Nce3 {[%emt 0:04:31]} Qd7 {[%emt 0:06:01]} 16. O-O {[%emt 0:04:19]} g6 {[%emt 0:04:55]} 17. a4 {[%emt 0:22:23]} f5 {[%emt 0:17:03]} 18. axb5 {[%emt 0:01:23]} axb5 {[%emt 0:12:33]} 19. Bf3 {[%emt 0:05:27]} f4 {[%emt 0:05:02]} 20. Nc2 {[%emt 0:00:06]} Bd8 {[%emt 0:01:05]} 21. Ncb4 {[%emt 0:03:13]} Na5 {[%emt 0:03:36]} 22. h3 {[%emt 0:06:58]} h5 {[%emt 0:00:58]} 23. Qe2 {[%emt 0:01:50]} Rf7 {[%emt 0:06:54]} 24. Rfd1 {[%emt 0:00:26]} Qc8 {[%emt 0:01:44]} 25. Ra3 {[%emt 0:05:13]} Kg7 {[%emt 0:05:20]} 26. Rda1 {[%emt 0:00:58]} Ra7 {[%emt 0:02:42]} 27. R1a2 {[%emt 0:04:21]} Qd7 {[%emt 0:01:15]} 28. Qd1 {[%emt 0:01:15]} Rba8 {[%emt 0:00:35]} 29. Be2 {[%emt 0:10:16]} Bf7 {[%emt 0:02:26]} 30. Nc2 {[%emt 0:02:15]} Nc4 {[%emt 0:03:40]} 31. Bxc4 {[%emt 0:04:03]} bxc4 {[%emt 0:00:44]} 32. Rxa7 {[%emt 0:00:25]} Rxa7 {[%emt 0:00:04]} 33. Rxa7 {[%emt 0:00:02]} Qxa7 {[%emt 0:00:12]} 34. Na3 {[%emt 0:00:04]} Qc5 {[%emt 0:02:31]} 35. Qe2 {[%emt 0:01:36]} Bh4 {[%emt 0:01:21]} 36. Kf1 {[%emt 0:02:23]} Bxd5 {[%emt 0:02:27]} 37. exd5 {[%emt 0:00:03]} Qxd5 {[%emt 0:00:07]} 38. Nxc4 {[%emt 0:00:10]} Qe6 {[%emt 0:05:33]} 39. Qe4 {[%emt 0:01:29]} Bf6 {[%emt 0:01:18]} 40. Qb7+ {[%emt 0:00:04]} Kh6 {[%emt 0:02:04]} 41. Nd2 {[%emt 0:02:05]} d5 {[%emt 0:00:17]} 42. Qb8 {[%emt 0:01:50]} g5 {[%emt 0:02:32]} 43. Qb4 {[%emt 0:01:01]} e4 {[%emt 0:00:19]} 44. Qb5 {[%emt 0:00:32]} g4 {[%emt 0:00:46]} 45. hxg4 {[%emt 0:00:03]} hxg4 {[%emt 0:00:16]} 46. Qe2 {[%emt 0:00:19]} Qf5 {[%emt 0:01:37]} 47. Kg1 {[%emt 0:00:56]} f3 {[%emt 0:01:33]} 48. Qe3+ {[%emt 0:00:11]} Kg6 {[%emt 0:00:52]} 49. c4 {[%emt 0:01:01]} dxc4 {[%emt 0:00:53]} 50. Nxc4 {[%emt 0:00:06]} Qd5 {[%emt 0:00:30]} 51. Nd2 {[%emt 0:00:26]} Kf5 {[%emt 0:00:07]} 52. Nf1 {[%emt 0:00:34]} fxg2 {[%emt 0:01:15]} 53. Ng3+ {[%emt 0:00:18]} Ke5 {[%emt 0:00:12]} 54. Qc3+ {[%emt 0:00:42]} Ke6 {[%emt 0:00:50]} 55. Qc8+ {[%emt 0:00:07]} Kf7 {[%emt 0:00:33]} 56. Qxg4 {[%emt 0:00:30]} e3 {[%emt 0:00:11]} 57. fxe3 {[%emt 0:00:14]} Qb5 {[%emt 0:00:35]} 58. b4 {[%emt 0:01:34]} Be7 {[%emt 0:00:42]} 59. Kxg2 {[%emt 0:00:33]} Bxb4 {[%emt 0:00:15]} 60. Qf3+ {[%emt 0:00:23]} Ke8 {[%emt 0:00:28]} 61. Ne4 {[%emt 0:00:10]} Be7 {[%emt 0:00:15]} 62. Qg4 {[%emt 0:00:39]} Qe5 {[%emt 0:00:42]} 63. Kf3 {[%emt 0:00:36]} Qd5 {[%emt 0:00:13]} 64. Ke2 {[%emt 0:00:49]} Qb5+ {[%emt 0:00:18]} 65. Kf2 {[%emt 0:00:13]} Qb2+ {[%emt 0:00:13]} 66. Kf3 {[%emt 0:00:07]} Qe5 {[%emt 0:00:20]} 67. Qg8+ {[%emt 0:00:18]} Kd7 {[%emt 0:00:26]} 68. Qf7 {[%emt 0:00:36]} Kd8 {[%emt 0:00:32]} 69. Qg8+ {[%emt 0:00:57]} Kd7 {[%emt 0:00:10]} 70. Qg4+ {[%emt 0:00:47]} Kd8 {[%emt 0:00:12]} 71. Nf2 {[%emt 0:00:22]} Qf6+ {[%emt 0:00:12]} 72. Kg2 {[%emt 0:00:16]} Qe5 {[%emt 0:00:18]} 73. Qf3 {[%emt 0:00:33]} Bd6 {[%emt 0:00:31]} 74. Qh3 {[%emt 0:00:42]} Bc5 {[%emt 0:01:07]} 75. Qh4+ {[%emt 0:00:44]} Qe7 {[%emt 0:01:03]} 76. Qxe7+ {[%emt 0:00:25]} Kxe7 {[%emt 0:00:31]} 77. e4 {[%emt 0:00:03]} Ke6 {[%emt 0:01:18]} 78. Nd3 {[%emt 0:00:05]} Be7 {[%emt 0:00:42]} 79. Kf3 {[%emt 0:00:04]} Bd6 {[%emt 0:00:20]} 80. Ke3 {[%emt 0:00:31]} Be5 {[%emt 0:00:43]} 81. Kf3 {[%emt 0:01:17]} Bd6 {[%emt 0:00:06]} 82. Kg4 {[%emt 0:00:04]} Kf6 {[%emt 0:00:12]} 83. Nb2 {[%emt 0:00:40]} Ke5 {[%emt 0:00:32]} 84. Kf3 {[%emt 0:00:03]} Ke6 {[%emt 0:00:25]} 85. Nc4 {[%emt 0:00:13]} Be5 {[%emt 0:00:06]} 86. Ke3 {[%emt 0:00:51]} Bb8 {[%emt 0:00:32]} 87. Na5 {[%emt 0:00:22]} Bc7 {[%emt 0:00:25]} 88. Nc6 {[%emt 0:00:19]} Kd6 {[%emt 0:00:39]} 89. Nb4 {[%emt 0:00:46]} Ke5 {[%emt 0:00:22]} 90. Kd3 {[%emt 0:00:05]} Bb6 {[%emt 0:00:41]} 1/2-1/2

[Event "74th Superior Womens Argentine-ch 2023"]
[Site "Buenos Aires"]
[Date "2023.11.27"]
[Round "7.3"]
[White "Campos, Maria Jose"]
[Black "Gaite, Karen Nerina"]
[Result "1-0"]
[ECO "A13"]
[WhiteElo "2208"]
[BlackElo "1871"]
[Annotator "RC"]
[PlyCount "65"]
[EventDate "2023.11.20"]
[EventType "swiss"]
[EventCountry "ARG"]
[SourceTitle "playchess.com"]
[Source "ChessBase"]
[SourceQuality "1"]
[TimeControl "5400+30"]

1. c4 {[%emt 0:00:17]} e6 {[%emt 0:00:31]} 2. g3 {[%emt 0:00:35]} d5 {[%emt 0:00:11]} 3. Nf3 {[%emt 0:00:43]} Nf6 {[%emt 0:00:10]} 4. Bg2 {[%emt 0:00:58]} d4 {[%emt 0:00:51]} 5. O-O {[%emt 0:00:45]} c5 {[%emt 0:00:50]} 6. e3 {[%emt 0:02:32]} Nc6 {[%emt 0:00:15]} 7. exd4 {[%emt 0:00:37]} cxd4 {[%emt 0:00:33]} 8. d3 {[%emt 0:00:25]} Bd6 {[%emt 0:01:20]} 9. Na3 {[%emt 0:01:32]} O-O {[%emt 0:00:57]} 10. Nc2 {[%emt 0:00:23]} e5 {[%emt 0:01:33]} 11. b4 {[%emt 0:04:46]} Re8 {[%emt 0:06:53]} 12. c5 {[%emt 0:09:54]} Bc7 {[%emt 0:03:17]} 13. Bg5 {[%emt 0:08:32]} Ne7 {[%emt 0:14:16]} 14. Bxf6 {[%emt 0:09:16]} gxf6 {[%emt 0:00:17]} 15. Nh4 {[%emt 0:00:50]} Ng6 {[%emt 0:11:50]} 16. Qh5 {[%emt 0:00:39]} Nxh4 {[%emt 0:02:04]} 17. Qxh4 {[%emt 0:01:28]} f5 {[%emt 0:02:20]} 18. Qh5 {[%emt 0:01:01]} Qf6 {[%emt 0:02:03]} 19. Rfe1 {[%emt 0:10:14]} Rd8 {[%emt 0:06:37]} 20. Na3 {[%emt 0:01:33]} a6 {[%emt 0:01:47]} 21. Nc4 {[%emt 0:05:44]} Rb8 {[%emt 0:03:43]} 22. g4 {[%emt 0:04:03]} Be6 {[%emt 0:03:17]} 23. gxf5 {[%emt 0:10:48]} Bxf5 {[%emt 0:07:40]} 24. Qf3 {[%emt 0:05:09]} Qg6 {[%emt 0:06:37]} 25. Nxe5 {[%emt 0:02:00]} Bxe5 {[%emt 0:00:16]} 26. Rxe5 {[%emt 0:00:06]} Bxd3 {[%emt 0:00:07]} 27. h4 {[%emt 0:07:10]} h6 {[%emt 0:07:31]} 28. Kh1 {[%emt 0:01:44]} Bc2 {[%emt 0:02:28]} 29. Rg1 {[%emt 0:01:18]} Kf8 {[%emt 0:00:20]} 30. h5 {[%emt 0:01:09]} Qh7 {[%emt 0:03:13]} 31. Qf6 {[%emt 0:00:59]} Rd7 {[%emt 0:03:29]} 32. Bh3 {[%emt 0:01:50]} Rdd8 {[%emt 0:03:03]} 33. Qe7# {[%emt 0:08:00]} 1-0